Workbook

Sheet الرئيسية
N18: Best Regards
N19: Mr.Emad

Sheet فاتورة
B1: Sales Invoice
B2: رقم الفاتورة | D2: =MAX('ملخص مبيعات'!$A:$A)+1 -> 27 | R2: wesam
B3: التاريخ | D3: =TODAY() -> 2020-08-23 | R3: ahmed
B4: اسم العميل | R4: omar
B5: رقم الموبايل | R5: ali
B7: م | C7: اسم الصنف | D7: كود | E7: كميه | F7: السعر | G7: الاجمالى | I7: رقم الفاتورة | J7: التاريخ | K7: اسم العميل | L7: رقم الموبايل | M7: اسم الصنف | N7: كود | O7: كميه | P7: السعر | Q7: الاجمالى
B8: =IF(C8="","",1) ->  | D8: =IFERROR(VLOOKUP(C8,المخزون!A:B,2,0),"") ->  | F8: =IFERROR(VLOOKUP(C8,المخزون!A:F,6,0),0) -> 0 | G8: =PRODUCT(F8,E8) -> 0 | I8: =$D$2 -> 27 | J8: =$D$3 -> 2020-08-23 | K8: =D4 -> 0 | L8: =D5 -> 0 | M8: =C8 -> 0 | O8: 0 | P8: 0 | Q8: 0
B9: =IF(C9="","",B8+1) ->  | D9: =IFERROR(VLOOKUP(C9,المخزون!A:B,2,0),"") ->  | F9: =IFERROR(VLOOKUP(C9,المخزون!A:F,6,0),0) -> 0 | G9: 0 | I9: =$D$2 -> 27 | J9: =$D$3 -> 2020-08-23 | M9: 0 | O9: 0 | P9: 0 | Q9: 0
B10: =IF(C10="","",B9+1) ->  | D10: =IFERROR(VLOOKUP(C10,المخزون!A:B,2,0),"") ->  | F10: =IFERROR(VLOOKUP(C10,المخزون!A:F,6,0),0) -> 0 | G10: 0 | I10: 27 | J10: 2020-08-23 | M10: 0 | O10: 0 | P10: 0 | Q10: 0
D11: =IFERROR(VLOOKUP(C11,المخزون!A:B,2,0),"") ->  | F11: =IFERROR(VLOOKUP(C11,المخزون!A:F,6,0),0) -> 0 | G11: 0 | I11: 27 | J11: 2020-08-23 | M11: 0 | O11: 0 | P11: 0 | Q11: 0
D12: =IFERROR(VLOOKUP(C12,المخزون!A:B,2,0),"") ->  | F12: =IFERROR(VLOOKUP(C12,المخزون!A:F,6,0),0) -> 0 | G12: 0 | I12: 27 | J12: 2020-08-23 | M12: 0 | O12: 0 | P12: 0 | Q12: 0
B13: خصم | I13: 27 | J13: 2020-08-23 | M13: =B13 -> خصم | N13: =D13 -> 0 | O13: 0 | P13: 0 | Q13: 0
B14: إجمالى الفاتورة | G14: =SUM(G8:G12)-G13 -> 0 | I14: 27 | J14: 2020-08-23 | M14: =B14 -> إجمالى الفاتورة | N14: 0 | O14: 0 | P14: 0 | Q14: 0
B16: =[1]!tafket(G14,"جنيه","قرش") -> 
F17: المستخدم:- | G17: wesam
F18: =NOW() -> 44066.7

Sheet المخزون
I2: =SUM(I4:I1048576) -> 1790
A3: اسم الصنف | B3: كود الصنف | C3: وارد | D3: سعر الوارد | E3: منصرف | F3: سعر البيع | G3: رصيد أخر | H3: قيمة رصيد اخر تكلفة | I3: الربح | M3: =SUMIF(A:A,A4,G:G)>=0 -> TRUE
A4: 1 | B4: 1 | C4: =SUMIF(وارد!A:A,المخزون!A4,وارد!C:C) -> 10 | D4: =VLOOKUP(A4,وارد!A:D,4,0) -> 100 | E4: =SUMIF('ملخص مبيعات'!E:E,المخزون!A4,'ملخص مبيعات'!G:G) -> 3 | F4: =VLOOKUP(A4,وارد!A:F,6,0) -> 150 | G4: =C4-E4 -> 7 | H4: =G4*D4 -> 700 | I4: =(E4*F4)-(E4*D4) -> 150
A5: 2 | B5: 2 | C5: =SUMIF(وارد!A:A,المخزون!A5,وارد!C:C) -> 10 | D5: =VLOOKUP(A5,وارد!A:D,4,0) -> 75 | E5: =SUMIF('ملخص مبيعات'!E:E,المخزون!A5,'ملخص مبيعات'!G:G) -> 8 | F5: =VLOOKUP(A5,وارد!A:F,6,0) -> 130 | G5: =C5-E5 -> 2 | H5: =G5*D5 -> 150 | I5: =(E5*F5)-(E5*D5) -> 440
A6: 3 | B6: 3 | C6: =SUMIF(وارد!A:A,المخزون!A6,وارد!C:C) -> 10 | D6: =VLOOKUP(A6,وارد!A:D,4,0) -> 85 | E6: =SUMIF('ملخص مبيعات'!E:E,المخزون!A6,'ملخص مبيعات'!G:G) -> 7 | F6: =VLOOKUP(A6,وارد!A:F,6,0) -> 130 | G6: 3 | H6: 255 | I6: 315
A7: 4 | B7: 4 | C7: =SUMIF(وارد!A:A,المخزون!A7,وارد!C:C) -> 10 | D7: =VLOOKUP(A7,وارد!A:D,4,0) -> 100 | E7: =SUMIF('ملخص مبيعات'!E:E,المخزون!A7,'ملخص مبيعات'!G:G) -> 2 | F7: =VLOOKUP(A7,وارد!A:F,6,0) -> 150 | G7: 8 | H7: 800 | I7: 100
A8: 5 | B8: 5 | C8: =SUMIF(وارد!A:A,المخزون!A8,وارد!C:C) -> 10 | D8: =VLOOKUP(A8,وارد!A:D,4,0) -> 100 | E8: =SUMIF('ملخص مبيعات'!E:E,المخزون!A8,'ملخص مبيعات'!G:G) -> 2 | F8: =VLOOKUP(A8,وارد!A:F,6,0) -> 150 | G8: 8 | H8: 800 | I8: 100
A9: 6 | B9: 6 | C9: =SUMIF(وارد!A:A,المخزون!A9,وارد!C:C) -> 10 | D9: =VLOOKUP(A9,وارد!A:D,4,0) -> 125 | E9: =SUMIF('ملخص مبيعات'!E:E,المخزون!A9,'ملخص مبيعات'!G:G) -> 2 | F9: =VLOOKUP(A9,وارد!A:F,6,0) -> 175 | G9: 8 | H9: 1000 | I9: 100
A10: 7 | B10: 7 | C10: =SUMIF(وارد!A:A,المخزون!A10,وارد!C:C) -> 10 | D10: =VLOOKUP(A10,وارد!A:D,4,0) -> 150 | E10: =SUMIF('ملخص مبيعات'!E:E,المخزون!A10,'ملخص مبيعات'!G:G) -> 0 | F10: =VLOOKUP(A10,وارد!A:F,6,0) -> 200 | G10: 10 | H10: 1500 | I10: 0
A11: 8 | B11: 8 | C11: =SUMIF(وارد!A:A,المخزون!A11,وارد!C:C) -> 10 | D11: =VLOOKUP(A11,وارد!A:D,4,0) -> 130 | E11: =SUMIF('ملخص مبيعات'!E:E,المخزون!A11,'ملخص مبيعات'!G:G) -> 3 | F11: =VLOOKUP(A11,وارد!A:F,6,0) -> 200 | G11: 7 | H11: 910 | I11: 210
A12: 9 | B12: 9 | C12: =SUMIF(وارد!A:A,المخزون!A12,وارد!C:C) -> 10 | D12: =VLOOKUP(A12,وارد!A:D,4,0) -> 85 | E12: =SUMIF('ملخص مبيعات'!E:E,المخزون!A12,'ملخص مبيعات'!G:G) -> 0 | F12: =VLOOKUP(A12,وارد!A:F,6,0) -> 130 | G12: 10 | H12: 850 | I12: 0
A13: 10 | B13: 10 | C13: =SUMIF(وارد!A:A,المخزون!A13,وارد!C:C) -> 10 | D13: =VLOOKUP(A13,وارد!A:D,4,0) -> 85 | E13: =SUMIF('ملخص مبيعات'!E:E,المخزون!A13,'ملخص مبيعات'!G:G) -> 0 | F13: =VLOOKUP(A13,وارد!A:F,6,0) -> 130 | G13: 10 | H13: 850 | I13: 0
A14: 11 | B14: 11 | C14: =SUMIF(وارد!A:A,المخزون!A14,وارد!C:C) -> 5 | D14: =VLOOKUP(A14,وارد!A:D,4,0) -> 125 | E14: =SUMIF('ملخص مبيعات'!E:E,المخزون!A14,'ملخص مبيعات'!G:G) -> 3 | F14: =VLOOKUP(A14,وارد!A:F,6,0) -> 200 | G14: 2 | H14: 250 | I14: 225
A15: 12 | B15: 12 | C15: =SUMIF(وارد!A:A,المخزون!A15,وارد!C:C) -> 5 | D15: =VLOOKUP(A15,وارد!A:D,4,0) -> 100 | E15: =SUMIF('ملخص مبيعات'!E:E,المخزون!A15,'ملخص مبيعات'!G:G) -> 1 | F15: =VLOOKUP(A15,وارد!A:F,6,0) -> 175 | G15: 4 | H15: 400 | I15: 75
A16: 13 | B16: 13 | C16: =SUMIF(وارد!A:A,المخزون!A16,وارد!C:C) -> 5 | D16: =VLOOKUP(A16,وارد!A:D,4,0) -> 75 | E16: =SUMIF('ملخص مبيعات'!E:E,المخزون!A16,'ملخص مبيعات'!G:G) -> 1 | F16: =VLOOKUP(A16,وارد!A:F,6,0) -> 150 | G16: 4 | H16: 300 | I16: 75
A17: 14 | B17: 14 | C17: =SUMIF(وارد!A:A,المخزون!A17,وارد!C:C) -> 0 | D17: =VLOOKUP(A17,وارد!A:D,4,0) -> 0 | E17: =SUMIF('ملخص مبيعات'!E:E,المخزون!A17,'ملخص مبيعات'!G:G) -> 0 | F17: =VLOOKUP(A17,وارد!A:F,6,0) -> 0 | G17: 0 | H17: 0 | I17: 0
A18: 15 | B18: 15 | C18: =SUMIF(وارد!A:A,المخزون!A18,وارد!C:C) -> 0 | D18: =VLOOKUP(A18,وارد!A:D,4,0) -> 0 | E18: =SUMIF('ملخص مبيعات'!E:E,المخزون!A18,'ملخص مبيعات'!G:G) -> 0 | F18: =VLOOKUP(A18,وارد!A:F,6,0) -> 0 | G18: 0 | H18: 0 | I18: 0
A19: 16 | B19: 16 | C19: =SUMIF(وارد!A:A,المخزون!A19,وارد!C:C) -> 0 | D19: =VLOOKUP(A19,وارد!A:D,4,0) -> 0 | E19: =SUMIF('ملخص مبيعات'!E:E,المخزون!A19,'ملخص مبيعات'!G:G) -> 0 | F19: =VLOOKUP(A19,وارد!A:F,6,0) -> 0 | G19: 0 | H19: 0 | I19: 0
A20: 17 | B20: 17 | C20: =SUMIF(وارد!A:A,المخزون!A20,وارد!C:C) -> 0 | D20: =VLOOKUP(A20,وارد!A:D,4,0) -> 0 | E20: =SUMIF('ملخص مبيعات'!E:E,المخزون!A20,'ملخص مبيعات'!G:G) -> 0 | F20: =VLOOKUP(A20,وارد!A:F,6,0) -> 0 | G20: 0 | H20: 0 | I20: 0
A21: 18 | B21: 18 | C21: =SUMIF(وارد!A:A,المخزون!A21,وارد!C:C) -> 0 | D21: =VLOOKUP(A21,وارد!A:D,4,0) -> 0 | E21: =SUMIF('ملخص مبيعات'!E:E,المخزون!A21,'ملخص مبيعات'!G:G) -> 0 | F21: =VLOOKUP(A21,وارد!A:F,6,0) -> 0 | G21: 0 | H21: 0 | I21: 0
A22: 19 | B22: 19 | C22: =SUMIF(وارد!A:A,المخزون!A22,وارد!C:C) -> 0 | D22: =VLOOKUP(A22,وارد!A:D,4,0) -> 0 | F22: =VLOOKUP(A22,وارد!A:F,6,0) -> 0 | G22: 0 | H22: 0 | I22: 0
A23: 20 | B23: 20 | C23: =SUMIF(وارد!A:A,المخزون!A23,وارد!C:C) -> 0 | D23: =VLOOKUP(A23,وارد!A:D,4,0) -> 0 | F23: =VLOOKUP(A23,وارد!A:F,6,0) -> 0 | G23: 0 | H23: 0 | I23: 0
A24: 21 | B24: 21 | C24: =SUMIF(وارد!A:A,المخزون!A24,وارد!C:C) -> 0 | D24: =VLOOKUP(A24,وارد!A:D,4,0) -> 0 | F24: =VLOOKUP(A24,وارد!A:F,6,0) -> 0 | G24: 0 | H24: 0 | I24: 0
A25: 22 | B25: 22 | C25: =SUMIF(وارد!A:A,المخزون!A25,وارد!C:C) -> 0 | D25: =VLOOKUP(A25,وارد!A:D,4,0) -> 0 | F25: =VLOOKUP(A25,وارد!A:F,6,0) -> 0 | G25: 0 | H25: 0 | I25: 0
A26: 23 | B26: 23 | C26: =SUMIF(وارد!A:A,المخزون!A26,وارد!C:C) -> 0 | D26: =VLOOKUP(A26,وارد!A:D,4,0) -> 0 | F26: =VLOOKUP(A26,وارد!A:F,6,0) -> 0 | G26: 0 | H26: 0 | I26: 0
A27: 24 | B27: 24 | C27: =SUMIF(وارد!A:A,المخزون!A27,وارد!C:C) -> 0 | D27: =VLOOKUP(A27,وارد!A:D,4,0) -> 0 | F27: =VLOOKUP(A27,وارد!A:F,6,0) -> 0 | G27: 0 | H27: 0 | I27: 0
A28: 25 | B28: 25 | C28: =SUMIF(وارد!A:A,المخزون!A28,وارد!C:C) -> 0 | D28: =VLOOKUP(A28,وارد!A:D,4,0) -> 0 | F28: =VLOOKUP(A28,وارد!A:F,6,0) -> 0 | G28: 0 | H28: 0 | I28: 0
A29: 26 | B29: 26 | C29: =SUMIF(وارد!A:A,المخزون!A29,وارد!C:C) -> 0 | D29: =VLOOKUP(A29,وارد!A:D,4,0) -> 0 | F29: =VLOOKUP(A29,وارد!A:F,6,0) -> 0 | G29: 0 | H29: 0 | I29: 0
A30: 27 | B30: 27 | C30: =SUMIF(وارد!A:A,المخزون!A30,وارد!C:C) -> 0 | D30: =VLOOKUP(A30,وارد!A:D,4,0) -> 0 | F30: =VLOOKUP(A30,وارد!A:F,6,0) -> 0 | G30: 0 | H30: 0 | I30: 0
A31: 28 | B31: 28 | C31: =SUMIF(وارد!A:A,المخزون!A31,وارد!C:C) -> 0 | D31: =VLOOKUP(A31,وارد!A:D,4,0) -> 0 | F31: =VLOOKUP(A31,وارد!A:F,6,0) -> 0 | G31: 0 | H31: 0 | I31: 0
A32: 29 | B32: 29 | C32: =SUMIF(وارد!A:A,المخزون!A32,وارد!C:C) -> 0 | D32: =VLOOKUP(A32,وارد!A:D,4,0) -> 0 | F32: =VLOOKUP(A32,وارد!A:F,6,0) -> 0 | G32: 0 | H32: 0 | I32: 0
A33: 30 | B33: 30 | C33: =SUMIF(وارد!A:A,المخزون!A33,وارد!C:C) -> 0 | D33: =VLOOKUP(A33,وارد!A:D,4,0) -> 0 | F33: =VLOOKUP(A33,وارد!A:F,6,0) -> 0 | G33: 0 | H33: 0 | I33: 0
A34: 31 | B34: 31 | C34: =SUMIF(وارد!A:A,المخزون!A34,وارد!C:C) -> 0 | D34: =VLOOKUP(A34,وارد!A:D,4,0) -> 0 | F34: =VLOOKUP(A34,وارد!A:F,6,0) -> 0 | G34: 0 | H34: 0 | I34: 0
A35: 32 | B35: 32 | C35: =SUMIF(وارد!A:A,المخزون!A35,وارد!C:C) -> 0 | D35: =VLOOKUP(A35,وارد!A:D,4,0) -> 0 | F35: =VLOOKUP(A35,وارد!A:F,6,0) -> 0 | G35: 0 | H35: 0 | I35: 0
A36: 33 | B36: 33 | C36: =SUMIF(وارد!A:A,المخزون!A36,وارد!C:C) -> 0 | D36: =VLOOKUP(A36,وارد!A:D,4,0) -> 0 | F36: =VLOOKUP(A36,وارد!A:F,6,0) -> 0 | G36: 0 | H36: 0 | I36: 0
A37: 34 | B37: 34 | C37: =SUMIF(وارد!A:A,المخزون!A37,وارد!C:C) -> 0 | D37: =VLOOKUP(A37,وارد!A:D,4,0) -> 0 | F37: =VLOOKUP(A37,وارد!A:F,6,0) -> 0 | G37: 0 | H37: 0 | I37: 0
A38: 35 | B38: 35 | C38: =SUMIF(وارد!A:A,المخزون!A38,وارد!C:C) -> 0 | D38: =VLOOKUP(A38,وارد!A:D,4,0) -> 0 | F38: =VLOOKUP(A38,وارد!A:F,6,0) -> 0 | G38: 0 | H38: 0 | I38: 0
A39: 36 | B39: 36 | C39: =SUMIF(وارد!A:A,المخزون!A39,وارد!C:C) -> 0 | D39: =VLOOKUP(A39,وارد!A:D,4,0) -> 0 | F39: =VLOOKUP(A39,وارد!A:F,6,0) -> 0 | G39: 0 | H39: 0 | I39: 0
A40: 37 | B40: 37 | C40: =SUMIF(وارد!A:A,المخزون!A40,وارد!C:C) -> 0 | D40: =VLOOKUP(A40,وارد!A:D,4,0) -> 0 | F40: =VLOOKUP(A40,وارد!A:F,6,0) -> 0 | G40: 0 | H40: 0 | I40: 0
A41: 38 | B41: 38 | C41: =SUMIF(وارد!A:A,المخزون!A41,وارد!C:C) -> 0 | D41: =VLOOKUP(A41,وارد!A:D,4,0) -> 0 | F41: =VLOOKUP(A41,وارد!A:F,6,0) -> 0 | G41: 0 | H41: 0 | I41: 0
A42: 39 | B42: 39 | C42: =SUMIF(وارد!A:A,المخزون!A42,وارد!C:C) -> 0 | D42: =VLOOKUP(A42,وارد!A:D,4,0) -> 0 | F42: =VLOOKUP(A42,وارد!A:F,6,0) -> 0 | G42: 0 | H42: 0 | I42: 0
A43: 40 | B43: 40 | C43: =SUMIF(وارد!A:A,المخزون!A43,وارد!C:C) -> 0 | D43: =VLOOKUP(A43,وارد!A:D,4,0) -> 0 | F43: =VLOOKUP(A43,وارد!A:F,6,0) -> 0 | G43: 0 | H43: 0 | I43: 0
A44: 41 | B44: 41 | C44: =SUMIF(وارد!A:A,المخزون!A44,وارد!C:C) -> 0 | D44: =VLOOKUP(A44,وارد!A:D,4,0) -> 0 | F44: =VLOOKUP(A44,وارد!A:F,6,0) -> 0 | G44: 0 | H44: 0 | I44: 0
A45: 42 | B45: 42 | C45: =SUMIF(وارد!A:A,المخزون!A45,وارد!C:C) -> 0 | D45: =VLOOKUP(A45,وارد!A:D,4,0) -> 0 | F45: =VLOOKUP(A45,وارد!A:F,6,0) -> 0 | G45: 0 | H45: 0 | I45: 0
A46: 43 | B46: 43 | C46: =SUMIF(وارد!A:A,المخزون!A46,وارد!C:C) -> 0 | D46: =VLOOKUP(A46,وارد!A:D,4,0) -> 0 | F46: =VLOOKUP(A46,وارد!A:F,6,0) -> 0 | G46: 0 | H46: 0 | I46: 0
A47: 44 | B47: 44 | C47: =SUMIF(وارد!A:A,المخزون!A47,وارد!C:C) -> 0 | D47: =VLOOKUP(A47,وارد!A:D,4,0) -> 0 | F47: =VLOOKUP(A47,وارد!A:F,6,0) -> 0 | G47: 0 | H47: 0 | I47: 0
A48: 45 | B48: 45 | C48: =SUMIF(وارد!A:A,المخزون!A48,وارد!C:C) -> 0 | D48: =VLOOKUP(A48,وارد!A:D,4,0) -> 0 | F48: =VLOOKUP(A48,وارد!A:F,6,0) -> 0 | G48: 0 | H48: 0 | I48: 0
A49: 46 | B49: 46 | C49: =SUMIF(وارد!A:A,المخزون!A49,وارد!C:C) -> 0 | D49: =VLOOKUP(A49,وارد!A:D,4,0) -> 0 | F49: =VLOOKUP(A49,وارد!A:F,6,0) -> 0 | G49: 0 | H49: 0 | I49: 0
A50: 47 | B50: 47 | C50: =SUMIF(وارد!A:A,المخزون!A50,وارد!C:C) -> 0 | D50: =VLOOKUP(A50,وارد!A:D,4,0) -> 0 | F50: =VLOOKUP(A50,وارد!A:F,6,0) -> 0 | G50: 0 | H50: 0 | I50: 0
A51: 48 | B51: 48 | C51: =SUMIF(وارد!A:A,المخزون!A51,وارد!C:C) -> 0 | D51: =VLOOKUP(A51,وارد!A:D,4,0) -> 0 | F51: =VLOOKUP(A51,وارد!A:F,6,0) -> 0 | G51: 0 | H51: 0 | I51: 0
A52: 49 | B52: 49 | C52: =SUMIF(وارد!A:A,المخزون!A52,وارد!C:C) -> 0 | D52: =VLOOKUP(A52,وارد!A:D,4,0) -> 0 | F52: =VLOOKUP(A52,وارد!A:F,6,0) -> 0 | G52: 0 | H52: 0 | I52: 0
A53: 50 | B53: 50 | C53: =SUMIF(وارد!A:A,المخزون!A53,وارد!C:C) -> 0 | D53: =VLOOKUP(A53,وارد!A:D,4,0) -> 0 | F53: =VLOOKUP(A53,وارد!A:F,6,0) -> 0 | G53: 0 | H53: 0 | I53: 0
A54: 51 | B54: 51 | C54: =SUMIF(وارد!A:A,المخزون!A54,وارد!C:C) -> 0 | D54: =VLOOKUP(A54,وارد!A:D,4,0) -> 0 | F54: =VLOOKUP(A54,وارد!A:F,6,0) -> 0 | G54: 0 | H54: 0 | I54: 0
A55: 52 | B55: 52 | C55: =SUMIF(وارد!A:A,المخزون!A55,وارد!C:C) -> 0 | D55: =VLOOKUP(A55,وارد!A:D,4,0) -> 0 | F55: =VLOOKUP(A55,وارد!A:F,6,0) -> 0 | G55: 0 | H55: 0 | I55: 0
A56: 53 | B56: 53 | C56: =SUMIF(وارد!A:A,المخزون!A56,وارد!C:C) -> 0 | D56: =VLOOKUP(A56,وارد!A:D,4,0) -> 0 | F56: =VLOOKUP(A56,وارد!A:F,6,0) -> 0 | G56: 0 | H56: 0 | I56: 0
A57: 54 | B57: 54 | C57: =SUMIF(وارد!A:A,المخزون!A57,وارد!C:C) -> 0 | D57: =VLOOKUP(A57,وارد!A:D,4,0) -> 0 | F57: =VLOOKUP(A57,وارد!A:F,6,0) -> 0 | G57: 0 | H57: 0 | I57: 0
A58: 55 | B58: 55 | C58: =SUMIF(وارد!A:A,المخزون!A58,وارد!C:C) -> 0 | D58: =VLOOKUP(A58,وارد!A:D,4,0) -> 0 | F58: =VLOOKUP(A58,وارد!A:F,6,0) -> 0 | G58: 0 | H58: 0 | I58: 0
A59: 56 | B59: 56 | C59: =SUMIF(وارد!A:A,المخزون!A59,وارد!C:C) -> 0 | D59: =VLOOKUP(A59,وارد!A:D,4,0) -> 0 | F59: =VLOOKUP(A59,وارد!A:F,6,0) -> 0 | G59: 0 | H59: 0 | I59: 0
A60: 57 | B60: 57 | C60: =SUMIF(وارد!A:A,المخزون!A60,وارد!C:C) -> 0 | D60: =VLOOKUP(A60,وارد!A:D,4,0) -> 0 | F60: =VLOOKUP(A60,وارد!A:F,6,0) -> 0 | G60: 0 | H60: 0 | I60: 0
A61: 58 | B61: 58 | C61: =SUMIF(وارد!A:A,المخزون!A61,وارد!C:C) -> 0 | D61: =VLOOKUP(A61,وارد!A:D,4,0) -> 0 | F61: =VLOOKUP(A61,وارد!A:F,6,0) -> 0 | G61: 0 | H61: 0 | I61: 0
A62: 59 | B62: 59 | C62: =SUMIF(وارد!A:A,المخزون!A62,وارد!C:C) -> 0 | D62: =VLOOKUP(A62,وارد!A:D,4,0) -> 0 | F62: =VLOOKUP(A62,وارد!A:F,6,0) -> 0 | G62: 0 | H62: 0 | I62: 0
A63: 60 | B63: 60 | C63: =SUMIF(وارد!A:A,المخزون!A63,وارد!C:C) -> 0 | D63: =VLOOKUP(A63,وارد!A:D,4,0) -> 0 | F63: =VLOOKUP(A63,وارد!A:F,6,0) -> 0 | G63: 0 | H63: 0 | I63: 0
A64: 61 | B64: 61 | C64: =SUMIF(وارد!A:A,المخزون!A64,وارد!C:C) -> 0 | D64: =VLOOKUP(A64,وارد!A:D,4,0) -> 0 | F64: =VLOOKUP(A64,وارد!A:F,6,0) -> 0 | G64: 0 | H64: 0 | I64: 0
A65: 62 | B65: 62 | C65: =SUMIF(وارد!A:A,المخزون!A65,وارد!C:C) -> 0 | D65: =VLOOKUP(A65,وارد!A:D,4,0) -> 0 | F65: =VLOOKUP(A65,وارد!A:F,6,0) -> 0 | G65: 0 | H65: 0 | I65: 0
A66: 63 | B66: 63 | C66: =SUMIF(وارد!A:A,المخزون!A66,وارد!C:C) -> 0 | D66: =VLOOKUP(A66,وارد!A:D,4,0) -> 0 | F66: =VLOOKUP(A66,وارد!A:F,6,0) -> 0 | G66: 0 | H66: 0 | I66: 0
A67: 64 | B67: 64 | C67: =SUMIF(وارد!A:A,المخزون!A67,وارد!C:C) -> 0 | D67: =VLOOKUP(A67,وارد!A:D,4,0) -> 0 | F67: =VLOOKUP(A67,وارد!A:F,6,0) -> 0 | G67: 0 | H67: 0 | I67: 0
A68: 65 | B68: 65 | C68: =SUMIF(وارد!A:A,المخزون!A68,وارد!C:C) -> 0 | D68: =VLOOKUP(A68,وارد!A:D,4,0) -> 0 | F68: =VLOOKUP(A68,وارد!A:F,6,0) -> 0 | G68: 0 | H68: 0 | I68: 0
A69: 66 | B69: 66 | C69: =SUMIF(وارد!A:A,المخزون!A69,وارد!C:C) -> 0 | D69: =VLOOKUP(A69,وارد!A:D,4,0) -> 0 | F69: =VLOOKUP(A69,وارد!A:F,6,0) -> 0 | G69: =C69-E69 -> 0 | H69: =G69*D69 -> 0 | I69: =(E69*F69)-(E69*D69) -> 0
A70: 67 | B70: 67 | C70: =SUMIF(وارد!A:A,المخزون!A70,وارد!C:C) -> 0 | D70: =VLOOKUP(A70,وارد!A:D,4,0) -> 0 | F70: =VLOOKUP(A70,وارد!A:F,6,0) -> 0 | G70: 0 | H70: 0 | I70: 0
A71: 68 | B71: 68 | C71: =SUMIF(وارد!A:A,المخزون!A71,وارد!C:C) -> 0 | D71: =VLOOKUP(A71,وارد!A:D,4,0) -> 0 | F71: =VLOOKUP(A71,وارد!A:F,6,0) -> 0 | G71: 0 | H71: 0 | I71: 0
A72: 69 | B72: 69 | C72: =SUMIF(وارد!A:A,المخزون!A72,وارد!C:C) -> 0 | D72: =VLOOKUP(A72,وارد!A:D,4,0) -> 0 | F72: =VLOOKUP(A72,وارد!A:F,6,0) -> 0 | G72: 0 | H72: 0 | I72: 0
A73: 70 | B73: 70 | C73: =SUMIF(وارد!A:A,المخزون!A73,وارد!C:C) -> 0 | D73: =VLOOKUP(A73,وارد!A:D,4,0) -> 0 | F73: =VLOOKUP(A73,وارد!A:F,6,0) -> 0 | G73: 0 | H73: 0 | I73: 0
A74: 71 | B74: 71 | C74: =SUMIF(وارد!A:A,المخزون!A74,وارد!C:C) -> 0 | D74: =VLOOKUP(A74,وارد!A:D,4,0) -> 0 | F74: =VLOOKUP(A74,وارد!A:F,6,0) -> 0 | G74: 0 | H74: 0 | I74: 0
A75: 72 | B75: 72 | C75: =SUMIF(وارد!A:A,المخزون!A75,وارد!C:C) -> 0 | D75: =VLOOKUP(A75,وارد!A:D,4,0) -> 0 | F75: =VLOOKUP(A75,وارد!A:F,6,0) -> 0 | G75: 0 | H75: 0 | I75: 0
A76: 73 | B76: 73 | C76: =SUMIF(وارد!A:A,المخزون!A76,وارد!C:C) -> 0 | D76: =VLOOKUP(A76,وارد!A:D,4,0) -> 0 | F76: =VLOOKUP(A76,وارد!A:F,6,0) -> 0 | G76: 0 | H76: 0 | I76: 0
A77: 74 | B77: 74 | C77: =SUMIF(وارد!A:A,المخزون!A77,وارد!C:C) -> 0 | D77: =VLOOKUP(A77,وارد!A:D,4,0) -> 0 | F77: =VLOOKUP(A77,وارد!A:F,6,0) -> 0 | G77: 0 | H77: 0 | I77: 0
A78: 75 | B78: 75 | C78: =SUMIF(وارد!A:A,المخزون!A78,وارد!C:C) -> 0 | D78: =VLOOKUP(A78,وارد!A:D,4,0) -> 0 | F78: =VLOOKUP(A78,وارد!A:F,6,0) -> 0 | G78: 0 | H78: 0 | I78: 0
A79: 76 | B79: 76 | C79: =SUMIF(وارد!A:A,المخزون!A79,وارد!C:C) -> 0 | D79: =VLOOKUP(A79,وارد!A:D,4,0) -> 0 | F79: =VLOOKUP(A79,وارد!A:F,6,0) -> 0 | G79: 0 | H79: 0 | I79: 0
A80: 77 | B80: 77 | C80: =SUMIF(وارد!A:A,المخزون!A80,وارد!C:C) -> 0 | D80: =VLOOKUP(A80,وارد!A:D,4,0) -> 0 | F80: =VLOOKUP(A80,وارد!A:F,6,0) -> 0 | G80: 0 | H80: 0 | I80: 0
A81: 78 | B81: 78 | C81: =SUMIF(وارد!A:A,المخزون!A81,وارد!C:C) -> 0 | D81: =VLOOKUP(A81,وارد!A:D,4,0) -> 0 | F81: =VLOOKUP(A81,وارد!A:F,6,0) -> 0 | G81: 0 | H81: 0 | I81: 0
A82: 79 | B82: 79 | C82: =SUMIF(وارد!A:A,المخزون!A82,وارد!C:C) -> 0 | D82: =VLOOKUP(A82,وارد!A:D,4,0) -> 0 | F82: =VLOOKUP(A82,وارد!A:F,6,0) -> 0 | G82: 0 | H82: 0 | I82: 0
A83: 80 | B83: 80 | C83: =SUMIF(وارد!A:A,المخزون!A83,وارد!C:C) -> 0 | D83: =VLOOKUP(A83,وارد!A:D,4,0) -> 0 | F83: =VLOOKUP(A83,وارد!A:F,6,0) -> 0 | G83: 0 | H83: 0 | I83: 0
A84: 81 | B84: 81 | C84: =SUMIF(وارد!A:A,المخزون!A84,وارد!C:C) -> 0 | D84: =VLOOKUP(A84,وارد!A:D,4,0) -> 0 | F84: =VLOOKUP(A84,وارد!A:F,6,0) -> 0 | G84: 0 | H84: 0 | I84: 0
A85: 82 | B85: 82 | C85: =SUMIF(وارد!A:A,المخزون!A85,وارد!C:C) -> 0 | D85: =VLOOKUP(A85,وارد!A:D,4,0) -> 0 | F85: =VLOOKUP(A85,وارد!A:F,6,0) -> 0 | G85: 0 | H85: 0 | I85: 0
A86: 83 | B86: 83 | C86: =SUMIF(وارد!A:A,المخزون!A86,وارد!C:C) -> 0 | D86: =VLOOKUP(A86,وارد!A:D,4,0) -> 0 | F86: =VLOOKUP(A86,وارد!A:F,6,0) -> 0 | G86: 0 | H86: 0 | I86: 0
A87: 84 | B87: 84 | C87: =SUMIF(وارد!A:A,المخزون!A87,وارد!C:C) -> 0 | D87: =VLOOKUP(A87,وارد!A:D,4,0) -> 0 | F87: =VLOOKUP(A87,وارد!A:F,6,0) -> 0 | G87: 0 | H87: 0 | I87: 0
A88: 85 | B88: 85 | C88: =SUMIF(وارد!A:A,المخزون!A88,وارد!C:C) -> 0 | D88: =VLOOKUP(A88,وارد!A:D,4,0) -> 0 | F88: =VLOOKUP(A88,وارد!A:F,6,0) -> 0 | G88: 0 | H88: 0 | I88: 0
A89: 86 | B89: 86 | C89: =SUMIF(وارد!A:A,المخزون!A89,وارد!C:C) -> 0 | D89: =VLOOKUP(A89,وارد!A:D,4,0) -> 0 | F89: =VLOOKUP(A89,وارد!A:F,6,0) -> 0 | G89: 0 | H89: 0 | I89: 0
A90: 87 | B90: 87 | C90: =SUMIF(وارد!A:A,المخزون!A90,وارد!C:C) -> 0 | D90: =VLOOKUP(A90,وارد!A:D,4,0) -> 0 | F90: =VLOOKUP(A90,وارد!A:F,6,0) -> 0 | G90: 0 | H90: 0 | I90: 0
A91: 88 | B91: 88 | C91: =SUMIF(وارد!A:A,المخزون!A91,وارد!C:C) -> 0 | D91: =VLOOKUP(A91,وارد!A:D,4,0) -> 0 | F91: =VLOOKUP(A91,وارد!A:F,6,0) -> 0 | G91: 0 | H91: 0 | I91: 0
A92: 89 | B92: 89 | C92: =SUMIF(وارد!A:A,المخزون!A92,وارد!C:C) -> 0 | D92: =VLOOKUP(A92,وارد!A:D,4,0) -> 0 | F92: =VLOOKUP(A92,وارد!A:F,6,0) -> 0 | G92: 0 | H92: 0 | I92: 0
A93: 90 | B93: 90 | C93: =SUMIF(وارد!A:A,المخزون!A93,وارد!C:C) -> 0 | D93: =VLOOKUP(A93,وارد!A:D,4,0) -> 0 | F93: =VLOOKUP(A93,وارد!A:F,6,0) -> 0 | G93: 0 | H93: 0 | I93: 0
A94: 91 | B94: 91 | C94: =SUMIF(وارد!A:A,المخزون!A94,وارد!C:C) -> 0 | D94: =VLOOKUP(A94,وارد!A:D,4,0) -> 0 | F94: =VLOOKUP(A94,وارد!A:F,6,0) -> 0 | G94: 0 | H94: 0 | I94: 0
A95: 92 | B95: 92 | C95: =SUMIF(وارد!A:A,المخزون!A95,وارد!C:C) -> 0 | D95: =VLOOKUP(A95,وارد!A:D,4,0) -> 0 | F95: =VLOOKUP(A95,وارد!A:F,6,0) -> 0 | G95: 0 | H95: 0 | I95: 0
A96: 93 | B96: 93 | C96: =SUMIF(وارد!A:A,المخزون!A96,وارد!C:C) -> 0 | D96: =VLOOKUP(A96,وارد!A:D,4,0) -> 0 | F96: =VLOOKUP(A96,وارد!A:F,6,0) -> 0 | G96: 0 | H96: 0 | I96: 0
A97: 94 | B97: 94 | C97: =SUMIF(وارد!A:A,المخزون!A97,وارد!C:C) -> 0 | D97: =VLOOKUP(A97,وارد!A:D,4,0) -> 0 | F97: =VLOOKUP(A97,وارد!A:F,6,0) -> 0 | G97: 0 | H97: 0 | I97: 0
A98: 95 | B98: 95 | C98: =SUMIF(وارد!A:A,المخزون!A98,وارد!C:C) -> 0 | D98: =VLOOKUP(A98,وارد!A:D,4,0) -> 0 | F98: =VLOOKUP(A98,وارد!A:F,6,0) -> 0 | G98: 0 | H98: 0 | I98: 0
A99: 96 | B99: 96 | C99: =SUMIF(وارد!A:A,المخزون!A99,وارد!C:C) -> 0 | D99: =VLOOKUP(A99,وارد!A:D,4,0) -> 0 | F99: =VLOOKUP(A99,وارد!A:F,6,0) -> 0 | G99: 0 | H99: 0 | I99: 0
A100: 97 | B100: 97 | C100: =SUMIF(وارد!A:A,المخزون!A100,وارد!C:C) -> 0 | D100: =VLOOKUP(A100,وارد!A:D,4,0) -> 0 | F100: =VLOOKUP(A100,وارد!A:F,6,0) -> 0 | G100: 0 | H100: 0 | I100: 0
A101: 98 | B101: 98 | C101: =SUMIF(وارد!A:A,المخزون!A101,وارد!C:C) -> 0 | D101: =VLOOKUP(A101,وارد!A:D,4,0) -> 0 | F101: =VLOOKUP(A101,وارد!A:F,6,0) -> 0 | G101: 0 | H101: 0 | I101: 0
A102: 99 | B102: 99 | C102: =SUMIF(وارد!A:A,المخزون!A102,وارد!C:C) -> 0 | D102: =VLOOKUP(A102,وارد!A:D,4,0) -> 0 | F102: =VLOOKUP(A102,وارد!A:F,6,0) -> 0 | G102: 0 | H102: 0 | I102: 0
A103: 100 | B103: 100 | C103: =SUMIF(وارد!A:A,المخزون!A103,وارد!C:C) -> 0 | D103: =VLOOKUP(A103,وارد!A:D,4,0) -> 0 | F103: =VLOOKUP(A103,وارد!A:F,6,0) -> 0 | G103: 0 | H103: 0 | I103: 0
A104: 101 | B104: 101 | C104: =SUMIF(وارد!A:A,المخزون!A104,وارد!C:C) -> 0 | D104: =VLOOKUP(A104,وارد!A:D,4,0) -> 0 | F104: =VLOOKUP(A104,وارد!A:F,6,0) -> 0 | G104: 0 | H104: 0 | I104: 0
A105: 102 | B105: 102 | C105: =SUMIF(وارد!A:A,المخزون!A105,وارد!C:C) -> 0 | D105: =VLOOKUP(A105,وارد!A:D,4,0) -> 0 | F105: =VLOOKUP(A105,وارد!A:F,6,0) -> 0 | G105: 0 | H105: 0 | I105: 0
A106: 103 | B106: 103 | C106: =SUMIF(وارد!A:A,المخزون!A106,وارد!C:C) -> 0 | D106: =VLOOKUP(A106,وارد!A:D,4,0) -> 0 | F106: =VLOOKUP(A106,وارد!A:F,6,0) -> 0 | G106: 0 | H106: 0 | I106: 0
A107: 104 | B107: 104 | C107: =SUMIF(وارد!A:A,المخزون!A107,وارد!C:C) -> 0 | D107: =VLOOKUP(A107,وارد!A:D,4,0) -> 0 | F107: =VLOOKUP(A107,وارد!A:F,6,0) -> 0 | G107: 0 | H107: 0 | I107: 0
A108: 105 | B108: 105 | C108: =SUMIF(وارد!A:A,المخزون!A108,وارد!C:C) -> 0 | D108: =VLOOKUP(A108,وارد!A:D,4,0) -> 0 | F108: =VLOOKUP(A108,وارد!A:F,6,0) -> 0 | G108: 0 | H108: 0 | I108: 0
A109: 106 | B109: 106 | C109: =SUMIF(وارد!A:A,المخزون!A109,وارد!C:C) -> 0 | D109: =VLOOKUP(A109,وارد!A:D,4,0) -> 0 | F109: =VLOOKUP(A109,وارد!A:F,6,0) -> 0 | G109: 0 | H109: 0 | I109: 0
A110: 107 | B110: 107 | C110: =SUMIF(وارد!A:A,المخزون!A110,وارد!C:C) -> 0 | D110: =VLOOKUP(A110,وارد!A:D,4,0) -> 0 | F110: =VLOOKUP(A110,وارد!A:F,6,0) -> 0 | G110: 0 | H110: 0 | I110: 0
A111: 108 | B111: 108 | C111: =SUMIF(وارد!A:A,المخزون!A111,وارد!C:C) -> 0 | D111: =VLOOKUP(A111,وارد!A:D,4,0) -> 0 | F111: =VLOOKUP(A111,وارد!A:F,6,0) -> 0 | G111: 0 | H111: 0 | I111: 0
A112: 109 | B112: 109 | C112: =SUMIF(وارد!A:A,المخزون!A112,وارد!C:C) -> 0 | D112: =VLOOKUP(A112,وارد!A:D,4,0) -> 0 | F112: =VLOOKUP(A112,وارد!A:F,6,0) -> 0 | G112: 0 | H112: 0 | I112: 0
A113: 110 | B113: 110 | C113: =SUMIF(وارد!A:A,المخزون!A113,وارد!C:C) -> 0 | D113: =VLOOKUP(A113,وارد!A:D,4,0) -> 0 | F113: =VLOOKUP(A113,وارد!A:F,6,0) -> 0 | G113: 0 | H113: 0 | I113: 0
A114: 111 | B114: 111 | C114: =SUMIF(وارد!A:A,المخزون!A114,وارد!C:C) -> 0 | D114: =VLOOKUP(A114,وارد!A:D,4,0) -> 0 | F114: =VLOOKUP(A114,وارد!A:F,6,0) -> 0 | G114: 0 | H114: 0 | I114: 0
A115: 112 | B115: 112 | C115: =SUMIF(وارد!A:A,المخزون!A115,وارد!C:C) -> 0 | D115: =VLOOKUP(A115,وارد!A:D,4,0) -> 0 | F115: =VLOOKUP(A115,وارد!A:F,6,0) -> 0 | G115: 0 | H115: 0 | I115: 0
A116: 113 | B116: 113 | C116: =SUMIF(وارد!A:A,المخزون!A116,وارد!C:C) -> 0 | D116: =VLOOKUP(A116,وارد!A:D,4,0) -> 0 | F116: =VLOOKUP(A116,وارد!A:F,6,0) -> 0 | G116: 0 | H116: 0 | I116: 0
A117: 114 | B117: 114 | C117: =SUMIF(وارد!A:A,المخزون!A117,وارد!C:C) -> 0 | D117: =VLOOKUP(A117,وارد!A:D,4,0) -> 0 | F117: =VLOOKUP(A117,وارد!A:F,6,0) -> 0 | G117: 0 | H117: 0 | I117: 0
A118: 115 | B118: 115 | C118: =SUMIF(وارد!A:A,المخزون!A118,وارد!C:C) -> 0 | D118: =VLOOKUP(A118,وارد!A:D,4,0) -> 0 | F118: =VLOOKUP(A118,وارد!A:F,6,0) -> 0 | G118: 0 | H118: 0 | I118: 0
A119: 116 | B119: 116 | C119: =SUMIF(وارد!A:A,المخزون!A119,وارد!C:C) -> 0 | D119: =VLOOKUP(A119,وارد!A:D,4,0) -> 0 | F119: =VLOOKUP(A119,وارد!A:F,6,0) -> 0 | G119: 0 | H119: 0 | I119: 0
A120: 117 | B120: 117 | C120: =SUMIF(وارد!A:A,المخزون!A120,وارد!C:C) -> 0 | D120: =VLOOKUP(A120,وارد!A:D,4,0) -> 0 | F120: =VLOOKUP(A120,وارد!A:F,6,0) -> 0 | G120: 0 | H120: 0 | I120: 0
A121: 118 | B121: 118 | C121: =SUMIF(وارد!A:A,المخزون!A121,وارد!C:C) -> 0 | D121: =VLOOKUP(A121,وارد!A:D,4,0) -> 0 | F121: =VLOOKUP(A121,وارد!A:F,6,0) -> 0 | G121: 0 | H121: 0 | I121: 0
A122: 119 | B122: 119 | C122: =SUMIF(وارد!A:A,المخزون!A122,وارد!C:C) -> 0 | D122: =VLOOKUP(A122,وارد!A:D,4,0) -> 0 | F122: =VLOOKUP(A122,وارد!A:F,6,0) -> 0 | G122: 0 | H122: 0 | I122: 0
A123: 120 | B123: 120 | C123: =SUMIF(وارد!A:A,المخزون!A123,وارد!C:C) -> 0 | D123: =VLOOKUP(A123,وارد!A:D,4,0) -> 0 | F123: =VLOOKUP(A123,وارد!A:F,6,0) -> 0 | G123: 0 | H123: 0 | I123: 0
A124: 121 | B124: 121 | C124: =SUMIF(وارد!A:A,المخزون!A124,وارد!C:C) -> 0 | D124: =VLOOKUP(A124,وارد!A:D,4,0) -> 0 | F124: =VLOOKUP(A124,وارد!A:F,6,0) -> 0 | G124: 0 | H124: 0 | I124: 0
A125: 122 | B125: 122 | C125: =SUMIF(وارد!A:A,المخزون!A125,وارد!C:C) -> 0 | D125: =VLOOKUP(A125,وارد!A:D,4,0) -> 0 | F125: =VLOOKUP(A125,وارد!A:F,6,0) -> 0 | G125: 0 | H125: 0 | I125: 0
A126: 123 | B126: 123 | C126: =SUMIF(وارد!A:A,المخزون!A126,وارد!C:C) -> 0 | D126: =VLOOKUP(A126,وارد!A:D,4,0) -> 0 | F126: =VLOOKUP(A126,وارد!A:F,6,0) -> 0 | G126: 0 | H126: 0 | I126: 0
A127: 124 | B127: 124 | C127: =SUMIF(وارد!A:A,المخزون!A127,وارد!C:C) -> 0 | D127: =VLOOKUP(A127,وارد!A:D,4,0) -> 0 | F127: =VLOOKUP(A127,وارد!A:F,6,0) -> 0 | G127: 0 | H127: 0 | I127: 0
A128: 125 | B128: 125 | C128: =SUMIF(وارد!A:A,المخزون!A128,وارد!C:C) -> 0 | D128: =VLOOKUP(A128,وارد!A:D,4,0) -> 0 | F128: =VLOOKUP(A128,وارد!A:F,6,0) -> 0 | G128: 0 | H128: 0 | I128: 0
A129: 126 | B129: 126 | C129: =SUMIF(وارد!A:A,المخزون!A129,وارد!C:C) -> 0 | D129: =VLOOKUP(A129,وارد!A:D,4,0) -> 0 | F129: =VLOOKUP(A129,وارد!A:F,6,0) -> 0 | G129: 0 | H129: 0 | I129: 0
A130: 127 | B130: 127 | C130: =SUMIF(وارد!A:A,المخزون!A130,وارد!C:C) -> 0 | D130: =VLOOKUP(A130,وارد!A:D,4,0) -> 0 | F130: =VLOOKUP(A130,وارد!A:F,6,0) -> 0 | G130: 0 | H130: 0 | I130: 0
A131: 128 | B131: 128 | C131: =SUMIF(وارد!A:A,المخزون!A131,وارد!C:C) -> 0 | D131: =VLOOKUP(A131,وارد!A:D,4,0) -> 0 | F131: =VLOOKUP(A131,وارد!A:F,6,0) -> 0 | G131: 0 | H131: 0 | I131: 0
A132: 129 | B132: 129 | C132: =SUMIF(وارد!A:A,المخزون!A132,وارد!C:C) -> 0 | D132: =VLOOKUP(A132,وارد!A:D,4,0) -> 0 | F132: =VLOOKUP(A132,وارد!A:F,6,0) -> 0 | G132: 0 | H132: 0 | I132: 0
A133: 130 | B133: 130 | C133: =SUMIF(وارد!A:A,المخزون!A133,وارد!C:C) -> 0 | D133: =VLOOKUP(A133,وارد!A:D,4,0) -> 0 | F133: =VLOOKUP(A133,وارد!A:F,6,0) -> 0 | G133: =C133-E133 -> 0 | H133: =G133*D133 -> 0 | I133: =(E133*F133)-(E133*D133) -> 0
A134: 131 | B134: 131 | C134: =SUMIF(وارد!A:A,المخزون!A134,وارد!C:C) -> 0 | D134: =VLOOKUP(A134,وارد!A:D,4,0) -> 0 | F134: =VLOOKUP(A134,وارد!A:F,6,0) -> 0 | G134: 0 | H134: 0 | I134: 0
A135: 132 | B135: 132 | C135: =SUMIF(وارد!A:A,المخزون!A135,وارد!C:C) -> 0 | D135: =VLOOKUP(A135,وارد!A:D,4,0) -> 0 | F135: =VLOOKUP(A135,وارد!A:F,6,0) -> 0 | G135: 0 | H135: 0 | I135: 0
A136: 133 | B136: 133 | C136: =SUMIF(وارد!A:A,المخزون!A136,وارد!C:C) -> 0 | D136: =VLOOKUP(A136,وارد!A:D,4,0) -> 0 | F136: =VLOOKUP(A136,وارد!A:F,6,0) -> 0 | G136: 0 | H136: 0 | I136: 0
A137: 134 | B137: 134 | C137: =SUMIF(وارد!A:A,المخزون!A137,وارد!C:C) -> 0 | D137: =VLOOKUP(A137,وارد!A:D,4,0) -> 0 | F137: =VLOOKUP(A137,وارد!A:F,6,0) -> 0 | G137: 0 | H137: 0 | I137: 0
A138: 135 | B138: 135 | C138: =SUMIF(وارد!A:A,المخزون!A138,وارد!C:C) -> 0 | D138: =VLOOKUP(A138,وارد!A:D,4,0) -> 0 | F138: =VLOOKUP(A138,وارد!A:F,6,0) -> 0 | G138: 0 | H138: 0 | I138: 0
A139: 136 | B139: 136 | C139: =SUMIF(وارد!A:A,المخزون!A139,وارد!C:C) -> 0 | D139: =VLOOKUP(A139,وارد!A:D,4,0) -> 0 | F139: =VLOOKUP(A139,وارد!A:F,6,0) -> 0 | G139: 0 | H139: 0 | I139: 0
A140: 137 | B140: 137 | C140: =SUMIF(وارد!A:A,المخزون!A140,وارد!C:C) -> 0 | D140: =VLOOKUP(A140,وارد!A:D,4,0) -> 0 | F140: =VLOOKUP(A140,وارد!A:F,6,0) -> 0 | G140: 0 | H140: 0 | I140: 0
A141: 138 | B141: 138 | C141: =SUMIF(وارد!A:A,المخزون!A141,وارد!C:C) -> 0 | D141: =VLOOKUP(A141,وارد!A:D,4,0) -> 0 | F141: =VLOOKUP(A141,وارد!A:F,6,0) -> 0 | G141: 0 | H141: 0 | I141: 0
A142: 139 | B142: 139 | C142: =SUMIF(وارد!A:A,المخزون!A142,وارد!C:C) -> 0 | D142: =VLOOKUP(A142,وارد!A:D,4,0) -> 0 | F142: =VLOOKUP(A142,وارد!A:F,6,0) -> 0 | G142: 0 | H142: 0 | I142: 0
A143: 140 | B143: 140 | C143: =SUMIF(وارد!A:A,المخزون!A143,وارد!C:C) -> 0 | D143: =VLOOKUP(A143,وارد!A:D,4,0) -> 0 | F143: =VLOOKUP(A143,وارد!A:F,6,0) -> 0 | G143: 0 | H143: 0 | I143: 0
A144: 141 | B144: 141 | C144: =SUMIF(وارد!A:A,المخزون!A144,وارد!C:C) -> 0 | D144: =VLOOKUP(A144,وارد!A:D,4,0) -> 0 | F144: =VLOOKUP(A144,وارد!A:F,6,0) -> 0 | G144: 0 | H144: 0 | I144: 0
A145: 142 | B145: 142 | C145: =SUMIF(وارد!A:A,المخزون!A145,وارد!C:C) -> 0 | D145: =VLOOKUP(A145,وارد!A:D,4,0) -> 0 | F145: =VLOOKUP(A145,وارد!A:F,6,0) -> 0 | G145: 0 | H145: 0 | I145: 0
A146: 143 | B146: 143 | C146: =SUMIF(وارد!A:A,المخزون!A146,وارد!C:C) -> 0 | D146: =VLOOKUP(A146,وارد!A:D,4,0) -> 0 | F146: =VLOOKUP(A146,وارد!A:F,6,0) -> 0 | G146: 0 | H146: 0 | I146: 0
A147: 144 | B147: 144 | C147: =SUMIF(وارد!A:A,المخزون!A147,وارد!C:C) -> 0 | D147: =VLOOKUP(A147,وارد!A:D,4,0) -> 0 | F147: =VLOOKUP(A147,وارد!A:F,6,0) -> 0 | G147: 0 | H147: 0 | I147: 0
A148: 145 | B148: 145 | C148: =SUMIF(وارد!A:A,المخزون!A148,وارد!C:C) -> 0 | D148: =VLOOKUP(A148,وارد!A:D,4,0) -> 0 | F148: =VLOOKUP(A148,وارد!A:F,6,0) -> 0 | G148: 0 | H148: 0 | I148: 0
A149: 146 | B149: 146 | C149: =SUMIF(وارد!A:A,المخزون!A149,وارد!C:C) -> 0 | D149: =VLOOKUP(A149,وارد!A:D,4,0) -> 0 | F149: =VLOOKUP(A149,وارد!A:F,6,0) -> 0 | G149: 0 | H149: 0 | I149: 0
A150: 147 | B150: 147 | C150: =SUMIF(وارد!A:A,المخزون!A150,وارد!C:C) -> 0 | D150: =VLOOKUP(A150,وارد!A:D,4,0) -> 0 | F150: =VLOOKUP(A150,وارد!A:F,6,0) -> 0 | G150: 0 | H150: 0 | I150: 0
A151: 148 | B151: 148 | C151: =SUMIF(وارد!A:A,المخزون!A151,وارد!C:C) -> 0 | D151: =VLOOKUP(A151,وارد!A:D,4,0) -> 0 | F151: =VLOOKUP(A151,وارد!A:F,6,0) -> 0 | G151: 0 | H151: 0 | I151: 0
A152: 149 | B152: 149 | C152: =SUMIF(وارد!A:A,المخزون!A152,وارد!C:C) -> 0 | D152: =VLOOKUP(A152,وارد!A:D,4,0) -> 0 | F152: =VLOOKUP(A152,وارد!A:F,6,0) -> 0 | G152: 0 | H152: 0 | I152: 0
A153: 150 | B153: 150 | C153: =SUMIF(وارد!A:A,المخزون!A153,وارد!C:C) -> 0 | D153: =VLOOKUP(A153,وارد!A:D,4,0) -> 0 | F153: =VLOOKUP(A153,وارد!A:F,6,0) -> 0 | G153: 0 | H153: 0 | I153: 0

Sheet وارد
A4: اسم الصنف | B4: كود الصنف | C4: كمية | D4: سعر | E4: قيمة | F4: سعر البيع
A5: 1 | B5: 1 | C5: 10 | D5: 100 | E5: =C5*D5 -> 1000 | F5: 150
A6: 2 | B6: 2 | C6: 10 | D6: 75 | E6: =C6*D6 -> 750 | F6: 130
A7: 3 | B7: 3 | C7: 10 | D7: 85 | E7: 850 | F7: 130
A8: 4 | B8: 4 | C8: 10 | D8: 100 | E8: 1000 | F8: 150
A9: 5 | B9: 5 | C9: 10 | D9: 100 | E9: 1000 | F9: 150
A10: 6 | B10: 6 | C10: 10 | D10: 125 | E10: 1250 | F10: 175
A11: 7 | B11: 7 | C11: 10 | D11: 150 | E11: 1500 | F11: 200
A12: 8 | B12: 8 | C12: 10 | D12: 130 | E12: 1300 | F12: 200
A13: 9 | B13: 9 | C13: 10 | D13: 85 | E13: 850 | F13: 130
A14: 10 | B14: 10 | C14: 10 | D14: 85 | E14: 850 | F14: 130
A15: 11 | B15: 11 | C15: 5 | D15: 125 | E15: 625 | F15: 200
A16: 12 | B16: 12 | C16: 5 | D16: 100 | E16: 500 | F16: 175
A17: 13 | B17: 13 | C17: 5 | D17: 75 | E17: 375 | F17: 150
A18: 14 | B18: 14
A19: 15 | B19: 15
A20: 16 | B20: 16
A21: 17 | B21: 17
A22: 18 | B22: 18
A23: 19 | B23: 19
A24: 20 | B24: 20
A25: 21 | B25: 21
A26: 22 | B26: 22
A27: 23 | B27: 23
A28: 24 | B28: 24
A29: 25 | B29: 25
A30: 26 | B30: 26
A31: 27 | B31: 27
A32: 28 | B32: 28
A33: 29 | B33: 29
A34: 30 | B34: 30
A35: 31 | B35: 31
A36: 32 | B36: 32
A37: 33 | B37: 33
A38: 34 | B38: 34
A39: 35 | B39: 35
A40: 36 | B40: 36
A41: 37 | B41: 37
A42: 38 | B42: 38
A43: 39 | B43: 39
A44: 40 | B44: 40
A45: 41 | B45: 41
A46: 42 | B46: 42
A47: 43 | B47: 43
A48: 44 | B48: 44
A49: 45 | B49: 45
A50: 46 | B50: 46
A51: 47 | B51: 47
A52: 48 | B52: 48
A53: 49 | B53: 49
A54: 50 | B54: 50
A55: 51 | B55: 51
A56: 52 | B56: 52
A57: 53 | B57: 53
A58: 54 | B58: 54
A59: 55 | B59: 55
A60: 56 | B60: 56
A61: 57 | B61: 57
A62: 58 | B62: 58
A63: 59 | B63: 59
A64: 60 | B64: 60
A65: 61 | B65: 61
A66: 62 | B66: 62
A67: 63 | B67: 63
A68: 64 | B68: 64
A69: 65 | B69: 65
A70: 66 | B70: 66
A71: 67 | B71: 67
A72: 68 | B72: 68
A73: 69 | B73: 69
A74: 70 | B74: 70
A75: 71 | B75: 71
A76: 72 | B76: 72
A77: 73 | B77: 73
A78: 74 | B78: 74
A79: 75 | B79: 75
A80: 76 | B80: 76
A81: 77 | B81: 77
A82: 78 | B82: 78
A83: 79 | B83: 79
A84: 80 | B84: 80
A85: 81 | B85: 81
A86: 82 | B86: 82
A87: 83 | B87: 83
A88: 84 | B88: 84
A89: 85 | B89: 85
A90: 86 | B90: 86
A91: 87 | B91: 87
A92: 88 | B92: 88
A93: 89 | B93: 89
A94: 90 | B94: 90
A95: 91 | B95: 91
A96: 92 | B96: 92
A97: 93 | B97: 93
A98: 94 | B98: 94
A99: 95 | B99: 95
A100: 96 | B100: 96
A101: 97 | B101: 97
A102: 98 | B102: 98
A103: 99 | B103: 99
A104: 100 | B104: 100
A105: 101 | B105: 101
A106: 102 | B106: 102
A107: 103 | B107: 103
A108: 104 | B108: 104
A109: 105 | B109: 105
A110: 106 | B110: 106
A111: 107 | B111: 107
A112: 108 | B112: 108
A113: 109 | B113: 109
A114: 110 | B114: 110
A115: 111 | B115: 111
A116: 112 | B116: 112
A117: 113 | B117: 113
A118: 114 | B118: 114
A119: 115 | B119: 115
A120: 116 | B120: 116
A121: 117 | B121: 117
A122: 118 | B122: 118
A123: 119 | B123: 119
A124: 120 | B124: 120
A125: 121 | B125: 121
A126: 122 | B126: 122
A127: 123 | B127: 123
A128: 124 | B128: 124
A129: 125 | B129: 125
A130: 126 | B130: 126
A131: 127 | B131: 127
A132: 128 | B132: 128
A133: 129 | B133: 129
A134: 130 | B134: 130
A135: 131 | B135: 131
A136: 132 | B136: 132
A137: 133 | B137: 133
A138: 134 | B138: 134
A139: 135 | B139: 135
A140: 136 | B140: 136
A141: 137 | B141: 137
A142: 138 | B142: 138
A143: 139 | B143: 139
A144: 140 | B144: 140
A145: 141 | B145: 141
A146: 142 | B146: 142
A147: 143 | B147: 143
A148: 144 | B148: 144
A149: 145 | B149: 145
A150: 146 | B150: 146
A151: 147 | B151: 147
A152: 148 | B152: 148
A153: 149 | B153: 149
A154: 150 | B154: 150

Sheet ملخص مبيعات
A4: رقم الفاتورة | B4: التاريخ | C4: اسم العميل | D4: رقم الموبايل | E4: اسم الصنف | F4: كود | G4: كميه | H4: السعر | I4: الاجمالى
A6: 26 | B6: 2020-08-23 | C6: 0 | D6: 0 | E6: 0 | G6: 0 | H6: 0 | I6: 0
A7: 26 | B7: 2020-08-23 | E7: 0 | G7: 0 | H7: 0 | I7: 0
A8: 26 | B8: 2020-08-23 | E8: 0 | G8: 0 | H8: 0 | I8: 0
A9: 26 | B9: 2020-08-23 | E9: 0 | G9: 0 | H9: 0 | I9: 0
A10: 26 | B10: 2020-08-23 | E10: 0 | G10: 0 | H10: 0 | I10: 0
A11: 26 | B11: 2020-08-23 | E11: خصم | F11: 0 | G11: 0 | H11: 0 | I11: 0
A12: 26 | B12: 2020-08-23 | E12: إجمالى الفاتورة | F12: 0 | G12: 0 | H12: 0 | I12: 0
A13: 25 | B13: 2020-08-23 | C13: 0 | D13: 0 | E13: 0 | G13: 0 | H13: 0 | I13: 0
A14: 25 | B14: 2020-08-23 | E14: 0 | G14: 0 | H14: 0 | I14: 0
A15: 25 | B15: 2020-08-23 | E15: 0 | G15: 0 | H15: 0 | I15: 0
A16: 25 | B16: 2020-08-23 | E16: 0 | G16: 0 | H16: 0 | I16: 0
A17: 25 | B17: 2020-08-23 | E17: 0 | G17: 0 | H17: 0 | I17: 0
A18: 25 | B18: 2020-08-23 | E18: خصم | F18: 0 | G18: 0 | H18: 0 | I18: 0
A19: 25 | B19: 2020-08-23 | E19: إجمالى الفاتورة | F19: 0 | G19: 0 | H19: 0 | I19: 0
A20: 24 | B20: 2020-08-23 | C20: 0 | D20: 0 | E20: 0 | G20: 0 | H20: 0 | I20: 0
A21: 24 | B21: 2020-08-23 | E21: 0 | G21: 0 | H21: 0 | I21: 0
A22: 24 | B22: 2020-08-23 | E22: 0 | G22: 0 | H22: 0 | I22: 0
A23: 24 | B23: 2020-08-23 | E23: 0 | G23: 0 | H23: 0 | I23: 0
A24: 24 | B24: 2020-08-23 | E24: 0 | G24: 0 | H24: 0 | I24: 0
A25: 24 | B25: 2020-08-23 | E25: خصم | F25: 0 | G25: 0 | H25: 0 | I25: 0
A26: 24 | B26: 2020-08-23 | E26: إجمالى الفاتورة | F26: 0 | G26: 0 | H26: 0 | I26: 0
A27: 23 | B27: 2020-08-23 | C27: 0 | D27: 0 | E27: 0 | G27: 0 | H27: 0 | I27: 0
A28: 23 | B28: 2020-08-23 | E28: 0 | G28: 0 | H28: 0 | I28: 0
A29: 23 | B29: 2020-08-23 | E29: 0 | G29: 0 | H29: 0 | I29: 0
A30: 23 | B30: 2020-08-23 | E30: 0 | G30: 0 | H30: 0 | I30: 0
A31: 23 | B31: 2020-08-23 | E31: 0 | G31: 0 | H31: 0 | I31: 0
A32: 23 | B32: 2020-08-23 | E32: خصم | F32: 0 | G32: 0 | H32: 0 | I32: 0
A33: 23 | B33: 2020-08-23 | E33: إجمالى الفاتورة | F33: 0 | G33: 0 | H33: 0 | I33: 0
A34: 22 | B34: 2020-08-23 | C34: 0 | D34: 0 | E34: 0 | G34: 0 | H34: 0 | I34: 0
A35: 22 | B35: 2020-08-23 | E35: 0 | G35: 0 | H35: 0 | I35: 0
A36: 22 | B36: 2020-08-23 | E36: 0 | G36: 0 | H36: 0 | I36: 0
A37: 22 | B37: 2020-08-23 | E37: 0 | G37: 0 | H37: 0 | I37: 0
A38: 22 | B38: 2020-08-23 | E38: 0 | G38: 0 | H38: 0 | I38: 0
A39: 22 | B39: 2020-08-23 | E39: خصم | F39: 0 | G39: 0 | H39: 0 | I39: 0
A40: 22 | B40: 2020-08-23 | E40: إجمالى الفاتورة | F40: 0 | G40: 0 | H40: 0 | I40: 0
A41: 21 | B41: 2020-08-23 | C41: 0 | D41: 0 | E41: 0 | G41: 0 | H41: 0 | I41: 0
A42: 21 | B42: 2020-08-23 | E42: 0 | G42: 0 | H42: 0 | I42: 0
A43: 21 | B43: 2020-08-23 | E43: 0 | G43: 0 | H43: 0 | I43: 0
A44: 21 | B44: 2020-08-23 | E44: 0 | G44: 0 | H44: 0 | I44: 0
A45: 21 | B45: 2020-08-23 | E45: 0 | G45: 0 | H45: 0 | I45: 0
A46: 21 | B46: 2020-08-23 | E46: خصم | F46: 0 | G46: 0 | H46: 0 | I46: 0
A47: 21 | B47: 2020-08-23 | E47: إجمالى الفاتورة | F47: 0 | G47: 0 | H47: 0 | I47: 0
A48: 20 | B48: 2020-08-23 | C48: 0 | D48: 0 | E48: 0 | G48: 0 | H48: 0 | I48: 0
A49: 20 | B49: 2020-08-23 | E49: 0 | G49: 0 | H49: 0 | I49: 0
A50: 20 | B50: 2020-08-23 | E50: 0 | G50: 0 | H50: 0 | I50: 0
A51: 20 | B51: 2020-08-23 | E51: 0 | G51: 0 | H51: 0 | I51: 0
A52: 20 | B52: 2020-08-23 | E52: 0 | G52: 0 | H52: 0 | I52: 0
A53: 20 | B53: 2020-08-23 | E53: خصم | F53: 0 | G53: 0 | H53: 0 | I53: 0
A54: 20 | B54: 2020-08-23 | E54: إجمالى الفاتورة | F54: 0 | G54: 0 | H54: 0 | I54: 0
A55: 19 | B55: 2020-08-23 | C55: 0 | D55: 0 | E55: 0 | G55: 0 | H55: 0 | I55: 0
A56: 19 | B56: 2020-08-23 | E56: 0 | G56: 0 | H56: 0 | I56: 0
A57: 19 | B57: 2020-08-23 | E57: 0 | G57: 0 | H57: 0 | I57: 0
A58: 19 | B58: 2020-08-23 | E58: 0 | G58: 0 | H58: 0 | I58: 0
A59: 19 | B59: 2020-08-23 | E59: 0 | G59: 0 | H59: 0 | I59: 0
A60: 19 | B60: 2020-08-23 | E60: خصم | F60: 0 | G60: 0 | H60: 0 | I60: 0
A61: 19 | B61: 2020-08-23 | E61: إجمالى الفاتورة | F61: 0 | G61: 0 | H61: 0 | I61: 0
A62: 18 | B62: 2020-08-23 | C62: 0 | D62: 0 | E62: 0 | G62: 0 | H62: 0 | I62: 0
A63: 18 | B63: 2020-08-23 | E63: 0 | G63: 0 | H63: 0 | I63: 0
A64: 18 | B64: 2020-08-23 | E64: 0 | G64: 0 | H64: 0 | I64: 0
A65: 18 | B65: 2020-08-23 | E65: 0 | G65: 0 | H65: 0 | I65: 0
A66: 18 | B66: 2020-08-23 | E66: 0 | G66: 0 | H66: 0 | I66: 0
A67: 18 | B67: 2020-08-23 | E67: خصم | F67: 0 | G67: 0 | H67: 0 | I67: 0
A68: 18 | B68: 2020-08-23 | E68: إجمالى الفاتورة | F68: 0 | G68: 0 | H68: 0 | I68: 0
A69: 17 | B69: 2020-08-23 | C69: 0 | D69: 0 | E69: 0 | G69: 0 | H69: 0 | I69: 0
A70: 17 | B70: 2020-08-23 | E70: 0 | G70: 0 | H70: 0 | I70: 0
A71: 17 | B71: 2020-08-23 | E71: 0 | G71: 0 | H71: 0 | I71: 0
A72: 17 | B72: 2020-08-23 | E72: 0 | G72: 0 | H72: 0 | I72: 0
A73: 17 | B73: 2020-08-23 | E73: 0 | G73: 0 | H73: 0 | I73: 0
A74: 17 | B74: 2020-08-23 | E74: خصم | F74: 0 | G74: 0 | H74: 0 | I74: 0
A75: 17 | B75: 2020-08-23 | E75: إجمالى الفاتورة | F75: 0 | G75: 0 | H75: 0 | I75: 0
A76: 16 | B76: 2020-08-23 | C76: 0 | D76: 0 | E76: 0 | G76: 0 | H76: 0 | I76: 0
A77: 16 | B77: 2020-08-23 | E77: 0 | G77: 0 | H77: 0 | I77: 0
A78: 16 | B78: 2020-08-23 | E78: 0 | G78: 0 | H78: 0 | I78: 0
A79: 16 | B79: 2020-08-23 | E79: 0 | G79: 0 | H79: 0 | I79: 0
A80: 16 | B80: 2020-08-23 | E80: 0 | G80: 0 | H80: 0 | I80: 0
A81: 16 | B81: 2020-08-23 | E81: خصم | F81: 0 | G81: 0 | H81: 0 | I81: 0
A82: 16 | B82: 2020-08-23 | E82: إجمالى الفاتورة | F82: 0 | G82: 0 | H82: 0 | I82: 0
A83: 15 | B83: 2020-08-23 | C83: 0 | D83: 0 | E83: 0 | G83: 0 | H83: 0 | I83: 0
A84: 15 | B84: 2020-08-23 | E84: 0 | G84: 0 | H84: 0 | I84: 0
A85: 15 | B85: 2020-08-23 | E85: 0 | G85: 0 | H85: 0 | I85: 0
A86: 15 | B86: 2020-08-23 | E86: 0 | G86: 0 | H86: 0 | I86: 0
A87: 15 | B87: 2020-08-23 | E87: 0 | G87: 0 | H87: 0 | I87: 0
A88: 15 | B88: 2020-08-23 | E88: خصم | F88: 0 | G88: 0 | H88: 0 | I88: 0
A89: 15 | B89: 2020-08-23 | E89: إجمالى الفاتورة | F89: 0 | G89: 0 | H89: 0 | I89: 0
A90: 14 | B90: 2020-08-23 | C90: 0 | D90: 0 | E90: 0 | G90: 0 | H90: 0 | I90: 0
A91: 14 | B91: 2020-08-23 | E91: 0 | G91: 0 | H91: 0 | I91: 0
A92: 14 | B92: 2020-08-23 | E92: 0 | G92: 0 | H92: 0 | I92: 0
A93: 14 | B93: 2020-08-23 | E93: 0 | G93: 0 | H93: 0 | I93: 0
A94: 14 | B94: 2020-08-23 | E94: 0 | G94: 0 | H94: 0 | I94: 0
A95: 14 | B95: 2020-08-23 | E95: خصم | F95: 0 | G95: 0 | H95: 0 | I95: 0
A96: 14 | B96: 2020-08-23 | E96: إجمالى الفاتورة | F96: 0 | G96: 0 | H96: 0 | I96: 0
A97: 13 | B97: 2020-08-23 | C97: 0 | D97: 0 | E97: 0 | G97: 0 | H97: 0 | I97: 0
A98: 13 | B98: 2020-08-23 | E98: 0 | G98: 0 | H98: 0 | I98: 0
A99: 13 | B99: 2020-08-23 | E99: 0 | G99: 0 | H99: 0 | I99: 0
A100: 13 | B100: 2020-08-23 | E100: 0 | G100: 0 | H100: 0 | I100: 0
A101: 13 | B101: 2020-08-23 | E101: 0 | G101: 0 | H101: 0 | I101: 0
A102: 13 | B102: 2020-08-23 | E102: خصم | F102: 0 | G102: 0 | H102: 0 | I102: 0
A103: 13 | B103: 2020-08-23 | E103: إجمالى الفاتورة | F103: 0 | G103: 0 | H103: 0 | I103: 0
A104: 12 | B104: 2020-08-23 | C104: نها | D104: 1266356566 | E104: 8 | F104: 8 | G104: 1 | H104: 200 | I104: 200
A105: 12 | B105: 2020-08-23 | E105: 0 | G105: 0 | H105: 0 | I105: 0
A106: 12 | B106: 2020-08-23 | E106: 0 | G106: 0 | H106: 0 | I106: 0
A107: 12 | B107: 2020-08-23 | E107: 0 | G107: 0 | H107: 0 | I107: 0
A108: 12 | B108: 2020-08-23 | E108: 0 | G108: 0 | H108: 0 | I108: 0
A109: 12 | B109: 2020-08-23 | E109: خصم | F109: 0 | G109: 0 | H109: 0 | I109: 0
A110: 12 | B110: 2020-08-23 | E110: إجمالى الفاتورة | F110: 0 | G110: 0 | H110: 0 | I110: 200
A111: 11 | B111: 2020-08-23 | C111: عاطف الطويل | D111: 1023654123 | E111: 1 | F111: 1 | G111: 1 | H111: 150 | I111: 150
A112: 11 | B112: 2020-08-23 | E112: 2 | F112: 2 | G112: 1 | H112: 130 | I112: 130
A113: 11 | B113: 2020-08-23 | E113: 3 | F113: 3 | G113: 1 | H113: 130 | I113: 130
A114: 11 | B114: 2020-08-23 | E114: 0 | G114: 0 | H114: 0 | I114: 0
A115: 11 | B115: 2020-08-23 | E115: 0 | G115: 0 | H115: 0 | I115: 0
A116: 11 | B116: 2020-08-23 | E116: خصم | F116: 0 | G116: 0 | H116: 0 | I116: 10
A117: 11 | B117: 2020-08-23 | E117: إجمالى الفاتورة | F117: 0 | G117: 0 | H117: 0 | I117: 400
A118: 10 | B118: 2020-08-23 | C118: سيف | D118: 1236547896 | E118: 2 | F118: 2 | G118: 1 | H118: 130 | I118: 130
A119: 10 | B119: 2020-08-23 | E119: 3 | F119: 3 | G119: 1 | H119: 130 | I119: 130
A120: 10 | B120: 2020-08-23 | E120: 0 | G120: 0 | H120: 0 | I120: 0
A121: 10 | B121: 2020-08-23 | E121: 0 | G121: 0 | H121: 0 | I121: 0
A122: 10 | B122: 2020-08-23 | E122: 0 | G122: 0 | H122: 0 | I122: 0
A123: 10 | B123: 2020-08-23 | E123: خصم | F123: 0 | G123: 0 | H123: 0 | I123: 0
A124: 10 | B124: 2020-08-23 | E124: إجمالى الفاتورة | F124: 0 | G124: 0 | H124: 0 | I124: 260
A125: 9 | B125: 2020-08-23 | C125: سيف | D125: 1236547896 | E125: 1 | F125: 1 | G125: 0 | H125: 150 | I125: 150
A126: 9 | B126: 2020-08-23 | E126: 2 | F126: 2 | G126: 0 | H126: 130 | I126: 130
A127: 9 | B127: 2020-08-23 | E127: 0 | G127: 0 | H127: 0 | I127: 0
A128: 9 | B128: 2020-08-23 | E128: 0 | G128: 0 | H128: 0 | I128: 0
A129: 9 | B129: 2020-08-23 | E129: 0 | G129: 0 | H129: 0 | I129: 0
A130: 9 | B130: 2020-08-23 | E130: خصم | F130: 0 | G130: 0 | H130: 0 | I130: 0
A131: 9 | B131: 2020-08-23 | E131: إجمالى الفاتورة | F131: 0 | G131: 0 | H131: 0 | I131: 280
A132: 8 | B132: 2020-08-23 | C132: سيف | D132: 1236547896 | E132: 0 | G132: 0 | H132: 0 | I132: 0
A133: 8 | B133: 2020-08-23 | E133: 0 | G133: 0 | H133: 0 | I133: 0
A134: 8 | B134: 2020-08-23 | E134: 0 | G134: 0 | H134: 0 | I134: 0
A135: 8 | B135: 2020-08-23 | E135: 0 | G135: 0 | H135: 0 | I135: 0
A136: 8 | B136: 2020-08-23 | E136: 0 | G136: 0 | H136: 0 | I136: 0
A137: 8 | B137: 2020-08-23 | E137: خصم | F137: 0 | G137: 0 | H137: 0 | I137: 0
A138: 8 | B138: 2020-08-23 | E138: إجمالى الفاتورة | F138: 0 | G138: 0 | H138: 0 | I138: 0
A139: 7 | B139: 2020-08-23 | C139: سيف | D139: 1236547896 | E139: 1 | F139: 1 | G139: 1 | H139: 150 | I139: 150
A140: 7 | B140: 2020-08-23 | E140: 2 | F140: 2 | G140: 1 | H140: 130 | I140: 130
A141: 7 | B141: 2020-08-23 | E141: 0 | G141: 0 | H141: 0 | I141: 0
A142: 7 | B142: 2020-08-23 | E142: 0 | G142: 0 | H142: 0 | I142: 0
A143: 7 | B143: 2020-08-23 | E143: 0 | G143: 0 | H143: 0 | I143: 0
A144: 7 | B144: 2020-08-23 | E144: خصم | F144: 0 | G144: 0 | H144: 0 | I144: 0
A145: 7 | B145: 2020-08-23 | E145: إجمالى الفاتورة | F145: 0 | G145: 0 | H145: 0 | I145: 280
A146: 6 | B146: 2020-08-23 | C146: رنا | D146: 1234569852 | E146: 6 | F146: 6 | G146: 2 | H146: 175 | I146: 350
A147: 6 | B147: 2020-08-23 | E147: 8 | F147: 8 | G147: 2 | H147: 200 | I147: 400
A148: 6 | B148: 2020-08-23 | E148: 11 | F148: 11 | G148: 2 | H148: 200 | I148: 400
A149: 6 | B149: 2020-08-23 | E149: 0 | G149: 0 | H149: 0 | I149: 0
A150: 6 | B150: 2020-08-23 | E150: 0 | G150: 0 | H150: 0 | I150: 0
A151: 6 | B151: 2020-08-23 | E151: خصم | F151: 0 | G151: 0 | H151: 0 | I151: 0
A152: 6 | B152: 2020-08-23 | E152: إجمالى الفاتورة | F152: 0 | G152: 0 | H152: 0 | I152: 1150
A153: 5 | B153: 2020-08-23 | C153: عمر | D153: 125655665656 | E153: 11 | F153: 11 | G153: 1 | H153: 200 | I153: 200
A154: 5 | B154: 2020-08-23 | E154: 12 | F154: 12 | G154: 1 | H154: 175 | I154: 175
A155: 5 | B155: 2020-08-23 | E155: 13 | F155: 13 | G155: 1 | H155: 150 | I155: 150
A156: 5 | B156: 2020-08-23 | E156: 0 | G156: 0 | H156: 0 | I156: 0
A157: 5 | B157: 2020-08-23 | E157: 0 | G157: 0 | H157: 0 | I157: 0
A158: 5 | B158: 2020-08-23 | E158: خصم | F158: 0 | G158: 0 | H158: 0 | I158: 0
A159: 5 | B159: 2020-08-23 | E159: إجمالى الفاتورة | F159: 0 | G159: 0 | H159: 0 | I159: 525
A160: 4 | B160: 2020-08-23 | C160: هنا | D160: 2313565 | E160: 2 | F160: 2 | G160: 2 | H160: 130 | I160: 260
A161: 4 | B161: 2020-08-23 | E161: 3 | F161: 3 | G161: 2 | H161: 150 | I161: 300
A162: 4 | B162: 2020-08-23 | E162: 0 | G162: 0 | H162: 0 | I162: 0
A163: 4 | B163: 2020-08-23 | E163: 0 | G163: 0 | H163: 0 | I163: 0
A164: 4 | B164: 2020-08-23 | E164: 0 | G164: 0 | H164: 0 | I164: 0
A165: 4 | B165: 2020-08-23 | E165: خصم | F165: 0 | G165: 0 | H165: 0 | I165: 0
A166: 4 | B166: 2020-08-23 | E166: إجمالى الفاتورة | F166: 0 | G166: 0 | H166: 0 | I166: 560
A167: 3 | B167: 2020-08-23 | C167: رنا شوقى | D167: 123654455 | E167: 2 | F167: 2 | G167: 1 | H167: 130 | I167: 130
A168: 3 | B168: 2020-08-23 | E168: 5 | F168: 5 | G168: 1 | H168: 150 | I168: 150
A169: 3 | B169: 2020-08-23 | E169: 0 | G169: 0 | H169: 0 | I169: 0
A170: 3 | B170: 2020-08-23 | E170: 0 | G170: 0 | H170: 0 | I170: 0
A171: 3 | B171: 2020-08-23 | E171: 0 | G171: 0 | H171: 0 | I171: 0
A172: 3 | B172: 2020-08-23 | E172: خصم | F172: 0 | G172: 0 | H172: 0 | I172: 0
A173: 3 | B173: 2020-08-23 | E173: إجمالى الفاتورة | F173: 0 | G173: 0 | H173: 0 | I173: 280
A174: 2 | B174: 2020-08-23 | C174: محمد شوقى | D174: 123654878 | E174: 2 | F174: 2 | G174: 1 | H174: 130 | I174: 130
A175: 2 | B175: 2020-08-23 | E175: 3 | F175: 3 | G175: 1 | H175: 150 | I175: 150
A176: 2 | B176: 2020-08-23 | E176: 4 | F176: 4 | G176: 1 | H176: 150 | I176: 150
A177: 2 | B177: 2020-08-23 | E177: 0 | G177: 0 | H177: 0 | I177: 0
A178: 2 | B178: 2020-08-23 | E178: 0 | G178: 0 | H178: 0 | I178: 0
A179: 2 | B179: 2020-08-23 | E179: خصم | F179: 0 | G179: 0 | H179: 0 | I179: 30
A180: 2 | B180: 2020-08-23 | E180: إجمالى الفاتورة | F180: 0 | G180: 0 | H180: 0 | I180: 400
A181: 1 | B181: 2020-08-23 | C181: محمود متولى | D181: 325566565 | E181: 1 | F181: 1 | G181: 1 | H181: 150 | I181: 150
A182: 1 | B182: 2020-08-23 | E182: 2 | F182: 2 | G182: 1 | H182: 125 | I182: 125
A183: 1 | B183: 2020-08-23 | E183: 3 | F183: 3 | G183: 2 | H183: 150 | I183: 300
A184: 1 | B184: 2020-08-23 | E184: 4 | F184: 4 | G184: 1 | H184: 150 | I184: 150
A185: 1 | B185: 2020-08-23 | E185: 5 | F185: 5 | G185: 1 | H185: 150 | I185: 150
A186: 1 | B186: 2020-08-23 | E186: خصم | F186: 0 | G186: 0 | H186: 0 | I186: 25
A187: 1 | B187: 2020-08-23 | E187: إجمالى الفاتورة | F187: 0 | G187: 0 | H187: 0 | I187: 850
